Cogmind - Beta 15 @@@ ROGUE MODE // 2025.10.11 @ 22:21:57 Player: rapskalian Result: Self-destructed Performance ------------- Evolutions (5) 2500 Regions Visited (10) 2000 Robots Destroyed (172) 860 Value Destroyed (6441) 6441 Prototype IDs (10) 200 Alien Tech Used (0) 0 Bonus (218) 218 TOTAL SCORE: 12219 Bonus ------- High Alert Combat Kills 181 Follower Combat Kills 37 Cogmind --------- Core Integrity 417/1000 Matter 253/300 Energy 1/100 System Corruption 16% Temperature Cool (-150) Movement Core (100) Ox1 Location -5/Factory Parts ------- > --- POWER (2) -------- (None) > --- PROPULSION (4) --- (None) > --- UTILITY (8) ------ Improved Cryofiber Web Improved Heat Sink Seismic Detector Core Analyzer Hacking Suite Improved Hacking Suite > --- WEAPON (3) ------- Power Maul > --- INVENTORY (5) ---- Nuclear Pulse Array Advanced KE Penetrator Peak State ------------ > --- POWER ------------ Angular Momentum Engine Light Fission Core > --- PROPULSION ------- Flexi-carbon Leg Flexi-carbon Leg Flexi-carbon Leg Armored Leg > --- UTILITY ---------- Improved Cooling System Large Storage Unit Matter Compressor Visual Processing Unit Target Analyzer Improved Kinecellerator Improved Weapon Cycler Centrium Medium Armor Plating > --- WEAPON ----------- Coil Gun KE Penetrator Mini Assault Cannon > --- INVENTORY -------- Neutrino Core Improved Carbon-fiber Leg Flexi-carbon Leg Improved Cryofiber Web Improved Signal Interpreter Improved Medium Armor Plating Improved Medium Armor Plating Improved Heavy Armor Plating Recalibrator Plasma Cannon Phase Cannon KE Penetrator Advanced KE Penetrator Power Maul [Rating: 89] Favorites ----------- Power Angular Momentum Engine Engine Angular Momentum Engine Power Core Light Nuclear Core Propulsion Aluminum Leg Treads Light Treads Leg Aluminum Leg Flight Unit Nuclear Pulse Array Utility Medium Storage Unit Device Seismic Detector Storage Medium Storage Unit Processor Target Analyzer Hackware Improved Hacking Suite Protection Improved Medium Armor Plating Weapon Mini Assault Cannon Energy Gun Precision Beam Rifle Energy Cannon Phase Cannon Ballistic Gun KE Penetrator Ballistic Cannon Mini Assault Cannon Launcher Grenade Launcher Special Weapon Mining Laser Impact Weapon Power Maul Build | -11 -10 -9 -8 -7 -6 -6 -6 -6 -6 -5 ------- Run | Yrd Mat Mat Mat Fac Fac Ext Cet Arc Hub Fac Slots Evolved 10 | . . 2 2 2 2 . . . . 2 Power 1 | . . . . . . . . . . 1 Propulsion 2 | . . 1 1 . . . . . . . Utility 6 | . . . 1 2 2 . . . . 1 Weapon 1 | . . 1 . . . . . . . . Parts Attached 175 | 7 3 11 23 33 14 17 9 6 14 38 Power 25 | 1 1 1 3 5 1 2 2 1 2 6 Engine 13 | 1 1 1 1 3 . 1 2 . . 3 Core 12 | . . . 2 2 1 1 . 1 2 3 Reactor . | . . . . . . . . . . . Propulsion 53 | 2 . 5 11 8 4 1 3 . 8 11 Treads 4 | . . 1 . 2 . . . . . 1 Leg 47 | 2 . 4 11 6 4 1 3 . 8 8 Wheel . | . . . . . . . . . . . Hover . | . . . . . . . . . . . Flight 2 | . . . . . . . . . . 2 Utility 51 | 2 1 . 3 10 4 7 3 3 4 14 Device 22 | 1 . . . 4 2 3 1 . 3 8 Storage 5 | 1 1 . 1 . . 1 . . 1 . Processor 5 | . . . . 1 1 . 1 . . 2 Hackware 3 | . . . . . . . . 1 . 2 Protection 16 | . . . 2 5 1 3 1 2 . 2 Artifact . | . . . . . . . . . . . Weapon 46 | 2 1 5 6 10 5 7 1 2 . 7 Energy Gun 15 | . . 1 2 5 1 1 . . . 5 Energy Cannon 6 | . . 1 . 1 1 3 . . . . Ballistic Gun 17 | 2 . 3 3 2 1 2 1 2 . 1 Ballistic Cannon 4 | . . . 1 1 1 . . . . 1 Launcher 2 | . . . . 1 1 . . . . . Special Weapon 1 | . 1 . . . . . . . . . Impact Weapon 1 | . . . . . . 1 . . . . Slashing Weapon . | . . . . . . . . . . . Piercing Weapon . | . . . . . . . . . . . Special Melee Weapon . | . . . . . . . . . . . Unidentified Prototypes 6 | . . 1 1 . 2 . 2 . . . Corrupted Parts 1 | . . . 1 . . . . . . . System Corruption 2 | . . . 2 . . . . . . . Parts Lost 77 | . . . . 22 2 3 10 1 3 36 Power 10 | . . . . 1 . . 2 . 1 6 Propulsion 27 | . . . . 9 1 . 4 . 2 11 Utility 22 | . . . . 5 . 2 3 1 . 11 Weapon 18 | . . . . 7 1 1 1 . . 8 Highest Loss Streak 20 | . . . . 10 2 2 10 1 2 20 To Critical Strikes 4 | . . . . . . . 3 . . 1 Average Backups 9 | 3 8 9 9 9 9 9 5 8 9 9 Power . | . 1 2 1 . 1 1 . . 1 . Propulsion 2 | 2 3 4 3 2 1 2 . . . 2 Utility 2 | . 1 . 2 1 2 2 . 2 3 3 Weapon 3 | . 2 2 3 3 4 4 4 5 4 3 Tool/Special . | . . . . . . . . . . . Unused Backups 26 | . 1 1 5 3 3 1 . . 2 10 Power 2 | . . . 1 . . 1 . . . . Propulsion 7 | . 1 . 2 . . . . . . 4 Utility 10 | . . 1 1 1 1 . . . 2 4 Weapon 6 | . . . 1 2 2 . . . . 1 Tool/Special 1 | . . . . . . . . . . 1 Average Slot Usage (%) 94 | . 100 98 98 97 96 99 87 92 95 86 Engine 4 | . 14 11 4 6 . 2 4 1 . 6 Core 2 | . . . 4 . 6 3 . 4 6 2 Leg 23 | . 28 31 35 29 22 26 21 20 22 15 Device 13 | . 14 11 8 14 13 18 7 6 6 17 Storage 10 | . 14 11 9 13 6 7 13 13 13 8 Processor 6 | . . . . 1 12 8 8 13 13 8 Protection 6 | . . . 8 6 10 10 9 11 6 3 Energy Gun 4 | . . 5 1 14 9 2 . . . 1 Energy Cannon 2 | . . 1 1 . . 4 6 1 7 3 Ballistic Gun 8 | . 23 23 17 4 3 4 5 16 12 3 Ballistic Cannon 3 | . . . 6 1 4 6 6 1 . 3 Peak Build Rating 89 | 8 8 13 26 39 60 70 69 71 75 89 Average Rating 50 | 4 8 10 22 31 52 62 56 68 71 73 On Entrance 38 | . 8 8 13 24 32 60 68 63 71 75 Naked Turns 1 | . . . . . . . . . . 1 Heaviest Build 84 | 14 19 25 30 41 42 62 57 63 62 84 Greatest Support 80 | 20 20 33 47 52 80 60 75 55 78 76 Greatest Overweight (x) 2 | 2 . . . 1 1 1 . 1 1 2 Average Overweight (x) . | . . . . . . . . . . . Largest Inventory Capacity 15 | 8 10 10 10 10 10 10 10 10 15 15 Average Capacity 10 | 6 9 10 10 10 10 10 10 10 11 12 Most Carried 15 | 8 9 10 10 10 10 10 10 10 14 15 Average Carried 9 | 3 8 9 9 9 9 9 5 8 10 10 Final Capacity 15 | 8 10 10 10 10 10 10 10 10 15 5 Final Carried 14 | 8 9 10 10 9 10 10 6 10 14 3 Class Distribution -------------------- 40% | Scavenger-Tank 40% | Scavenger-Gunner 8% | Mutant 5% | Gunner Dominant Class ---------------- Mutant | -10/Materials Gunner | -9/Materials Scavenger-Tank | -8/Materials Scavenger-Tank | -7/Factory Scavenger-Tank | -6/Factory Scavenger-Tank | -6/Extension Scavenger-Gunner | -6/Cetus Scavenger-Tank | -6/Archives Scavenger-Gunner | -6/Hub_04(d) Scavenger-Gunner | -5/Factory Resources | -11 -10 -9 -8 -7 -6 -6 -6 -6 -6 -5 ----------- Run | Yrd Mat Mat Mat Fac Fac Ext Cet Arc Hub Fac Matter Collected 6268 | 326 . 273 849 1081 75 705 218 358 825 1558 Remotely 50 | . . . . 50 . . . . . . Salvage Created 6858 | 123 . 388 701 1203 75 1163 173 328 1339 1365 Parts 367 | 10 . 26 43 65 3 50 5 11 100 54 Haulers Intercepted 6 | . . . . . . 5 . . . 1 Recyclers Shooed 6 | 1 . . . 2 . 1 . . . 2 Parts Field Recycled . | . . . . . . . . . . . Retrieved Matter . | . . . . . . . . . . . Parts Self-Destructed . | . . . . . . . . . . . Prevented . | . . . . . . . . . . . Kills | -11 -10 -9 -8 -7 -6 -6 -6 -6 -6 -5 ------- Run | Yrd Mat Mat Mat Fac Fac Ext Cet Arc Hub Fac Combat Hostiles Destroyed 106 | . . 5 19 19 1 15 4 4 15 24 Guns 56 | . . 5 12 12 1 2 . 3 14 7 Cannons 35 | . . . 7 3 . 5 4 1 1 14 AOE 11 | . . . . 4 . 5 . . . 2 Classes Destroyed 18 | 2 . 4 4 4 . 2 . . 2 . Worker 28 | . . 1 3 7 . . . . 12 5 Builder 7 | . . . . 1 . 2 . . 3 1 Tunneler 5 | 3 . . . 1 . 1 . . . . Hauler 6 | . . . . . . 5 . . . 1 Recycler 7 | 1 . 1 . 4 . . . . 1 . Mechanic 1 | . . . . 1 . . . . . . Operator 3 | . . . 1 . . . . 1 1 . Watcher 9 | . . 2 . 1 . 2 1 . 2 1 Swarmer 13 | . . . 6 3 . 4 . . . . Grunt 37 | . . 2 10 5 . 5 . . 4 11 Brawler 1 | . . . 1 . . . . . . . Duelist 4 | . . . 1 . . 1 . . . 2 Sentry 15 | . . 3 1 2 1 2 . 4 1 1 Specialist 2 | . . . . . . . . . 2 . Hunter 10 | . . . . 3 . 1 . . 3 3 Programmer 16 | . . . . 6 . . . . 3 7 Heavy 2 | . . . . . . . . . 2 . Behemoth 2 | . . . . . . 2 . . . . Cetus Guard 4 | . . . . . . . 4 . . . Best Kill Streak 19 | 3 . 4 8 8 1 6 2 4 19 6 Combat Bots Only 10 | . . 2 6 5 1 3 2 3 10 4 Max Kills in Single Turn 4 | 1 . 2 2 3 1 3 1 1 2 4 Gunslinging . | . . . . . . . . . . . Exploded 3 | . . . . 2 . 3 . . . 1 Melee . | . . . . . . . . . . . Uniques/NPCs Destroyed . | . . . . . . . . . . . Combat | -11 -10 -9 -8 -7 -6 -6 -6 -6 -6 -5 -------- Run | Yrd Mat Mat Mat Fac Fac Ext Cet Arc Hub Fac Hostile Shots Fired 1392 | . . 25 78 458 36 195 68 20 104 408 Missed 481 | . . 11 13 188 13 88 19 6 33 110 Hits 911 | . . 14 65 270 23 107 49 14 71 298 Melee 13 | . . . 4 . . 5 . . . 4 Projectile 898 | . . 14 61 270 23 102 49 14 71 294 Critical Strikes 42 | . . 2 3 4 . 3 11 1 4 14 Actively Blocked 1 | . . . . 1 . . . . . . Part Disruptions 2 | . . . . 2 . . . . . . Damage Taken 13919 | . 17 200 991 3053 163 1517 1258 330 1340 5050 Core 1689 | . . 55 122 411 . 86 160 27 245 583 Absorbed by Shields 40 | . . . . . . . 40 . . . Redirected to Shielding 207 | . . . . 207 . . . . . . Ignored by Resistances 27 | . . . . . . . . . . 27 Regen/Repaired (Parts) 78 | . . . . 78 . . . . . . Core Remaining (%) 73 | 100 100 86 77 41 . . . . 39 . Volleys Fired 434 | 14 5 20 59 80 4 52 20 15 60 105 Largest 3 | 2 1 3 3 3 3 3 3 3 3 3 Hottest 210 | 40 100 99 113 177 202 210 153 160 198 205 Shots Fired 1171 | 28 5 56 175 212 12 143 54 34 181 271 Gun 688 | 28 . 53 117 148 9 43 14 15 147 114 Cannon 467 | . . 3 58 57 3 96 40 19 34 157 Launcher 11 | . . . . 7 . 4 . . . . Special 5 | . 5 . . . . . . . . . Kinetic 815 | 28 . 41 166 100 . 85 34 30 147 184 Thermal 287 | . 5 12 1 81 11 51 20 4 34 68 Explosive 11 | . . . . 7 . 4 . . . . Electromagnetic 58 | . . 3 8 24 1 3 . . . 19 Robot Hit Streak 23 | 5 . 14 23 14 6 12 13 10 8 10 Robot Miss Streak 6 | 5 . 5 5 5 1 6 5 2 4 6 Penetration Max 1 | . . . . . . . . . 1 1 Secondary Targets 4 | . . . . 1 . . . . 3 . Max Gunslinging Chain 1 | . . . . 1 . . . . 1 . Shots Hit Robots 700 | 15 . 35 99 137 8 87 42 22 108 147 Core Hits 332 | 6 . 19 39 64 3 50 32 11 54 54 Critical Kills 14 | . . . . . . 3 . 3 5 3 Critical Parts Destroyed 17 | . . . 2 . . 2 . 1 10 2 Critical Strikes 46 | . . . 2 8 . 9 . 5 15 7 Burn 8 | . . . . 8 . . . . . . Meltdown 3 | . . . . . . 2 . . . 1 Destroy 26 | . . . 2 . . 1 . 4 15 4 Blast 6 | . . . . . . 3 . 1 . 2 Smash 3 | . . . . . . 3 . . . . Melee Attacks 21 | . . . . . . 7 . . . 14 Impact 21 | . . . . . . 7 . . . 14 Slashing . | . . . . . . . . . . . Piercing . | . . . . . . . . . . . Sneak Attacks . | . . . . . . . . . . . Combat Hostiles . | . . . . . . . . . . . Follow-up Attacks . | . . . . . . . . . . . Damage Inflicted 18969 | 177 . 437 1903 3107 131 3266 1186 646 3228 4888 Guns 8954 | 177 . 366 1071 1707 131 542 270 358 2580 1752 Cannons 8027 | . . 56 795 811 . 1813 916 288 629 2719 Explosions 1700 | . . . 33 550 . 700 . . . 417 Melee 152 | . . . . . . 152 . . . . Ramming 136 | . . 15 4 39 . 59 . . 19 . Kinetic 11672 | 177 . 278 1711 1179 . 1223 699 614 2580 3211 Thermal 5205 | . . 88 33 1232 120 1071 487 32 629 1513 Explosive 1250 | . . . . 550 . 700 . . . . Electromagnetic 554 | . . 56 155 107 11 61 . . . 164 Impact 152 | . . . . . . 152 . . . . Slashing . | . . . . . . . . . . . Piercing . | . . . . . . . . . . . Highest Corruption 16 | . . 4 2 9 . . . . 2 16 Average Corruption 6 | . . 4 2 7 . . . . 1 10 Corruption Purged . | . . . . . . . . . . . Corruption Blocked . | . . . . . . . . . . . Effects 98 | . . 5 6 37 . . . . 4 46 Message Errors 15 | . . . . 10 . . . . . 5 Matter Fused 24 | . . 1 . 8 . . . . 2 13 Heat Flow Errors 15 | . . 2 1 5 . . . . . 7 Energy Discharges 14 | . . . 1 7 . . . . . 6 Parts Rejected 2 | . . 1 . . . . . . . 1 Parts Fused 1 | . . . . 1 . . . . . . Data Loss (minor) 13 | . . 1 2 3 . . . . 1 6 Data Loss (major) 3 | . . . . 1 . . . . . 2 Misfires 3 | . . . . 1 . . . . 1 1 Alerts 1 | . . . . . . . . . . 1 Misdirections 1 | . . . . . . . . . . 1 Weapon Failures 6 | . . . 2 1 . . . . . 3 Overload Shots . | . . . . . . . . . . . Overflow Damage 461 | . . . . 86 . 129 13 . 74 159 Projectiles 281 | . . . . 50 . 18 13 . 74 126 Explosions 111 | . . . . 36 . 42 . . . 33 Melee 69 | . . . . . . 69 . . . . Knockbacks 45 | . . . 18 7 . 5 . . . 15 Impact 4 | . . . . . . 4 . . . . Kinetic 35 | . . . 13 7 . 1 . . . 14 Secondary 6 | . . . 5 . . . . . . 1 Self-Inflicted Damage 183 | . . . 41 73 . 69 . . . . Shots 6 | . . . 1 4 . 1 . . . . Rammed 1 | . . . . 1 . . . . . . Targets Rammed 12 | . . 1 2 5 . 3 . . 1 . Kicked 11 | . . 1 2 4 . 3 . . 1 . Crushed . | . . . . . . . . . . . Highest Temperature 540 | . 24 268 374 365 270 248 24 72 162 540 Average Temperature 107 | . 11 49 116 99 118 85 10 35 45 171 Received Heat Transfer 2277 | . . 123 414 561 36 294 . 18 189 642 Effects 12 | . . . . 6 . . . . . 6 Shutdowns 2 | . . . . 1 . . . . . 1 Energy Bleed 1 | . . . . 1 . . . . . . Interference 5 | . . . . 3 . . . . . 2 Matter Decay 2 | . . . . 1 . . . . . 1 Short Circuit 2 | . . . . . . . . . . 2 Siege Activations . | . . . . . . . . . . . Martial Activations . | . . . . . . . . . . . Shielding Activations . | . . . . . . . . . . . Robots Disrupted . | . . . . . . . . . . . Combat Hostiles . | . . . . . . . . . . . Robots Corrupted 2 | . . . . . . 2 . . . . Combat Hostiles 1 | . . . . . . 1 . . . . Parts Fried 4 | . . 1 . . . 2 . . . 1 Impact Corruptions 4 | . . . . . . 4 . . . . Robots Melted 4 | . . . . . . 3 . . . 1 Combat Hostiles 3 | . . . . . . 2 . . . 1 Parts Melted 20 | . . . . 10 3 3 . . 1 3 Heat Transferred 8770 | . . 200 50 2849 259 1875 592 37 857 2051 Parts Sabotaged 2 | . . . . . . . . . . 2 Parts Stolen . | . . . . . . . . . . . Parts Stripped . | . . . . . . . . . . . Power Chain Reactions 1 | . . . 1 . . . . . . . Alert | -11 -10 -9 -8 -7 -6 -6 -6 -6 -6 -5 ------- Run | Yrd Mat Mat Mat Fac Fac Ext Cet Arc Hub Fac Maximum Alert Level 2 | . . . 1 1 . . . . 1 2 Low Security (%) 70 | 100 100 100 85 87 100 100 100 100 32 23 Level 1 13 | . . . 14 12 . . . . 67 15 Level 2 15 | . . . . . . . . . . 61 Level 3 . | . . . . . . . . . . . Level 4 . | . . . . . . . . . . . Level 5 . | . . . . . . . . . . . High Security . | . . . . . . . . . . . Max Security . | . . . . . . . . . . . Peak Influence 616 | 10 21 52 259 248 30 179 77 119 344 616 Initial 144 | . . 8 21 106 30 . 77 . . 144 Average 151 | 1 1 19 78 102 4 76 16 35 221 362 Influence Increases 4083 | 20 46 181 499 751 30 461 100 149 590 1256 Destroy 0b10 Robot/C 2140 | . . 100 380 400 20 300 80 80 300 480 Destroy 0b10 Robot/NC 330 | 20 . 20 20 75 . 50 5 5 95 40 Destroy Leader 518 | . . 44 70 132 10 44 . . 104 114 Allied During Kill 3 | . . . . 3 . . . . . . Successful Hack 67 | . 11 16 . 7 . . 11 . . 22 Disable Machine 360 | . . . . 60 . . . 60 60 180 Destroy Structure 410 | . 5 1 29 59 . 37 4 4 31 240 Lose Combat Pursuer 255 | . 30 . . 15 . 30 . . . 180 Influence Decreases 3608 | 20 25 151 315 922 94 322 239 149 295 1076 Entered New Map 419 | . . 13 30 129 34 . 62 . . 151 Time Decay 2430 | 20 25 138 285 553 60 292 88 139 265 565 Lost Part 739 | . . . . 220 . 30 89 10 30 360 Lost Ally 20 | . . . . 20 . . . . . . Squads Dispatched 29 | . 1 . 5 9 . 2 . . 5 7 Investigation 4 | . 1 . . 2 . 1 . . . . Extermination 10 | . . . . 4 . . . . 1 5 Reinforcement 9 | . . . 2 1 . 1 . . 4 1 Assault 1 | . . . . . . . . . . 1 Garrison 5 | . . . 3 2 . . . . . . Intercept . | . . . . . . . . . . . Searches Triggered . | . . . . . . . . . . . Construction Impeded 4 | . . . 1 . . 1 . . 1 1 Haulers Reinforced . | . . . . . . . . . . . Active Scanning Responses . | . . . . . . . . . . . Cargo Convoy Interrupts . | . . . . . . . . . . . Stealth | -11 -10 -9 -8 -7 -6 -6 -6 -6 -6 -5 --------- Run | Yrd Mat Mat Mat Fac Fac Ext Cet Arc Hub Fac Distress Signals 6 | . . 2 1 . . . 1 . 2 . Communications Jammed . | . . . . . . . . . . . Distress Signals . | . . . . . . . . . . . Times Spotted 157 | . 3 9 23 29 1 20 5 4 17 46 Peak Tracking Total 7 | . 2 3 6 7 1 5 5 1 3 5 Tactical Retreats 7 | . 1 . . 1 . 1 . . . 4 Traps | -11 -10 -9 -8 -7 -6 -6 -6 -6 -6 -5 ------- Run | Yrd Mat Mat Mat Fac Fac Ext Cet Arc Hub Fac Traps Triggered 4 | . 1 . . 1 . 1 . . . 1 Indirectly . | . . . . . . . . . . . Trap Hack Attempts . | . . . . . . . . . . . Triggered . | . . . . . . . . . . . Disarmed . | . . . . . . . . . . . Reprogrammed . | . . . . . . . . . . . Reused . | . . . . . . . . . . . Traps Extracted . | . . . . . . . . . . . Installed . | . . . . . . . . . . . Triggered . | . . . . . . . . . . . Machines | -11 -10 -9 -8 -7 -6 -6 -6 -6 -6 -5 ---------- Run | Yrd Mat Mat Mat Fac Fac Ext Cet Arc Hub Fac Machines Disabled 24 | . . . . 4 . . . 4 4 12 Max in Single Turn 6 | . . . . 4 . . . 2 1 6 Machines Repaired . | . . . . . . . . . . . Machines Dismantled . | . . . . . . . . . . . Machines Sabotaged . | . . . . . . . . . . . Overloaded Fab Kills . | . . . . . . . . . . . Hacking | -11 -10 -9 -8 -7 -6 -6 -6 -6 -6 -5 --------- Run | Yrd Mat Mat Mat Fac Fac Ext Cet Arc Hub Fac Machines Accessed 22 | . 2 4 1 6 . 1 3 . 2 3 Terminals 15 | . 2 3 1 2 . 1 3 . 2 1 Fabricators . | . . . . . . . . . . . Repair Stations 2 | . . . . 2 . . . . . . Recycling Units 2 | . . . . 1 . . . . . 1 Scanalyzers 3 | . . 1 . 1 . . . . . 1 Garrison Access . | . . . . . . . . . . . Total Hacks 58 | . 5 13 4 12 . 3 8 . 5 8 Successful 23 | . 4 3 1 7 . . 3 . 1 4 Failed 35 | . 1 10 3 5 . 3 5 . 4 4 Catastrophic 2 | . . . 1 . . . . . . 1 Database Lockouts . | . . . . . . . . . . . Manual 20 | . 6 8 4 . . . . . . 2 Terminals 41 | . 5 11 4 3 . 3 8 . 5 2 Fabricators . | . . . . . . . . . . . Repair Stations 7 | . . . . 7 . . . . . . Recycling Units 5 | . . . . 1 . . . . . 4 Scanalyzers 5 | . . 2 . 1 . . . . . 2 Garrison Access . | . . . . . . . . . . . Terminal Hacks 14 | . 4 3 1 2 . . 3 . 1 . Record 4 | . . . . . . . 3 . 1 . Robot Analysis 3 | . 2 1 . . . . . . . . Prototype ID Bank 2 | . 1 1 . . . . . . . . Open DSF 2 | . . . . 2 . . . . . . Emergency Access Points 1 | . . . 1 . . . . . . . Locate Traps 2 | . 1 1 . . . . . . . . Fabricator Hacks . | . . . . . . . . . . . Repair Station Hacks 4 | . . . . 4 . . . . . . Scan Component 3 | . . . . 3 . . . . . . Repair 1 | . . . . 1 . . . . . . Recycling Unit Hacks 2 | . . . . . . . . . . 2 Report Inventory 1 | . . . . . . . . . . 1 Retrieve Matter 1 | . . . . . . . . . . 1 Scanalyzer 3 | . . . . 1 . . . . . 2 Insert Component 2 | . . . . 1 . . . . . 1 Analyze 1 | . . . . . . . . . . 1 Garrison Access Hacks . | . . . . . . . . . . . Unauthorized Hacks . | . . . . . . . . . . . Terminals . | . . . . . . . . . . . Fabricators . | . . . . . . . . . . . Repair Stations . | . . . . . . . . . . . Recycling Units . | . . . . . . . . . . . Scanalyzers . | . . . . . . . . . . . Garrison Access . | . . . . . . . . . . . Data Cores Recovered 1 | . . . . . . . . . 1 . Used . | . . . . . . . . . . . Hacking Detections 21 | . 2 4 1 5 . 1 3 . 2 3 Full Trace Events 2 | . 1 . . 1 . . . . . . Feedback Events . | . . . . . . . . . . . Feedback Blocked . | . . . . . . . . . . . Robot Schematics Acquired . | . . . . . . . . . . . Robots Built . | . . . . . . . . . . . Authchips . | . . . . . . . . . . . Time . | . . . . . . . . . . . Total Robot Build Rating . | . . . . . . . . . . . Part Schematics Acquired 1 | . . . . . . . . . . 1 Parts Built . | . . . . . . . . . . . Authchips . | . . . . . . . . . . . Time . | . . . . . . . . . . . Total Part Build Rating . | . . . . . . . . . . . Parts Repaired 1 | . . . . 1 . . . . . . Time 26 | . . . . 26 . . . . . . Parts Recycled . | . . . . . . . . . . . Recycled Matter . | . . . . . . . . . . . Retrieved Matter . | . . . . . . . . . . . Retrieved Components . | . . . . . . . . . . . Parts Scanalyzed 1 | . . . . . . . . . . 1 Part Schematics Acquired 1 | . . . . . . . . . . 1 Parts Damaged . | . . . . . . . . . . . Bothacking | -11 -10 -9 -8 -7 -6 -6 -6 -6 -6 -5 ------------ Run | Yrd Mat Mat Mat Fac Fac Ext Cet Arc Hub Fac Used RIF Installer . | . . . . . . . . . . . Robots Hacked . | . . . . . . . . . . . Non-combat . | . . . . . . . . . . . Combat . | . . . . . . . . . . . Robot Hacks Applied . | . . . . . . . . . . . Relay Couplers Released 3 | . . . . 3 . . . . . . Programmers 3 | . . . . 3 . . . . . . Fabnet Peak Effective % . | . . . . . . . . . . . Robots Rewired 1 | . . . . 1 . . . . . . Allies Hacked . | . . . . . . . . . . . Hacks Repelled . | . . . . . . . . . . . Allies | -11 -10 -9 -8 -7 -6 -6 -6 -6 -6 -5 -------- Run | Yrd Mat Mat Mat Fac Fac Ext Cet Arc Hub Fac Total Allies 1 | . . . . 1 . . . . . . Largest Group 1 | . . . . 1 . . . . . . Highest-Rated Group 21 | . . . . 21 . . . . . . Highest-Rated Ally 21 | . . . . 21 . . . . . . Total Orders . | . . . . . . . . . . . Ally Attacks 5 | . . . . 5 . . . . . . Total Damage 64 | . . . . 64 . . . . . . Kills 1 | . . . . 1 . . . . . . Allies Corrupted . | . . . . . . . . . . . Allies Melted . | . . . . . . . . . . . Intel | -11 -10 -9 -8 -7 -6 -6 -6 -6 -6 -5 ------- Run | Yrd Mat Mat Mat Fac Fac Ext Cet Arc Hub Fac Active Infowar (turns) 6801 | 21 225 377 634 1556 36 768 149 483 695 1857 Optics 2862 | . . . . . . . 132 483 695 1552 Sensors 23 | . . . . . . 6 17 . . . IFF 798 | . . . . . 36 762 . . . . Seismic 3118 | 21 225 377 634 1556 . . . . . 305 Jamming 250 | . . . . . . . . . . 250 Robot Analysis Total 3 | . 2 1 . . . . . . . . Derelict Logs Recovered . | . . . . . . . . . . . Drone Launches . | . . . . . . . . . . . Drone Recoveries . | . . . . . . . . . . . Exploration | -11 -10 -9 -8 -7 -6 -6 -6 -6 -6 -5 ------------- Run | Yrd Mat Mat Mat Fac Fac Ext Cet Arc Hub Fac Turns Passed 7760 | 177 225 377 650 1626 480 768 315 483 695 1964 Spaces Moved 4273 | 57 160 209 345 981 229 412 146 250 319 1165 Core 10 | 8 . . . . . . . . . 2 Treads 94 | . . . . 20 58 . . . . 16 Legs 3747 | 49 160 209 345 961 171 412 146 250 319 725 Wheels . | . . . . . . . . . . . Hover . | . . . . . . . . . . . Flight 422 | . . . . . . . . . . 422 Fastest Speed 37 | 50 120 120 112 110 130 126 126 126 120 37 Average Speed 127 | 119 120 120 117 120 176 128 126 167 122 121 Slowest Speed 320 | 190 120 120 120 240 200 200 127 196 200 320 Overloaded Moves . | . . . . . . . . . . . Propulsion Burnouts . | . . . . . . . . . . . Robots Hopped . | . . . . . . . . . . . Potential Cave-ins . | . . . . . . . . . . . Cave-ins Triggered . | . . . . . . . . . . . Exploration Rate (%) 31 | 5 28 20 19 24 7 41 63 99 27 18 Regions Visited 10 Branch Regions 4 Pre-discovered Areas . | . . . . . . . . . . . Known Exits Taken . | . . . . . . . . . . . Unknown Exits Taken 10 | 1 1 1 1 1 1 1 1 1 1 . Scrap Searched . | . . . . . . . . . . . Spaces Dug 27 | . 5 . . . . . . . . 22 Terrain Destroyed 308 | . 5 . 23 62 . 62 3 4 23 126 Melee 14 | . . . . . . . . . . 14 Projectile 105 | . 5 . 15 3 . 9 3 4 22 44 AOE 188 | . . . 8 59 . 53 . . . 68 Terrain Rammed . | . . . . . . . . . . . Walls Destroyed . | . . . . . . . . . . . Machines Disabled . | . . . . . . . . . . . Actions | -11 -10 -9 -8 -7 -6 -6 -6 -6 -6 -5 --------- Run | Yrd Mat Mat Mat Fac Fac Ext Cet Arc Hub Fac Total 5699 | 137 178 293 488 1266 295 522 231 284 492 1513 Wait 509 | 52 8 40 19 103 31 16 53 2 68 117 Move 4263 | 56 159 208 344 980 228 411 145 249 318 1165 Hop . | . . . . . . . . . . . Pick Up 84 | 8 1 2 9 16 8 3 2 7 6 22 Fast Attach 65 | 7 . 2 6 8 3 2 3 1 5 28 Attach 54 | . . 3 1 16 3 2 6 . . 23 Detach 5 | . . 1 . . . . . . . 4 Swap 122 | . 3 10 21 19 10 18 2 5 17 17 Drop 102 | . 2 6 27 11 8 8 . 5 17 18 Fire 434 | 14 5 20 59 80 4 52 20 15 60 105 Melee 21 | . . . . . . 7 . . . 14 Ram . | . . . . . . . . . . . Kick 11 | . . 1 2 4 . 3 . . 1 . Crush 1 | . . . . 1 . . . . . . Escape Stasis . | . . . . . . . . . . . Rewire 28 | . . . . 28 . . . . . . Trap . | . . . . . . . . . . . Miscellaneous . | . . . . . . . . . . . Route ------- -11/Scrapyard -10/Materials -9/Materials -8/Materials -7/Factory -6/Factory -6/Extension (discovered 2 exits: *Fac / *Cet) -6/Cetus -6/Archives (discovered 3 exits: *Fac / *Hub x2) -6/Hub_04(d) -5/Factory History --------- Turn | Location | Event 58 | -11/Scrapyard | Discovered new exit (range 16) 178 | -11/Scrapyard | Entered Materials 298 | -10/Materials | Discovered new exit (range 3) 306 | -10/Materials | Build established: Mutant 403 | -10/Materials | Entered another Materials area 403 | -9/Materials | Evolved 2 slots: Propulsion x1, Weapon x1 719 | -9/Materials | Discovered new exit (range 4) 780 | -9/Materials | Entered another Materials area 780 | -8/Materials | Evolved 2 slots: Propulsion x1, Utility x1 1117 | -8/Materials | Build established: Scavenger-Tank 1215 | -8/Materials | Garrison activated, responded to threat 1230 | -8/Materials | Discovered new exit (range 11) 1430 | -8/Materials | Entered Factory 1430 | -7/Factory | Evolved 2 slots: Utility x2 1681 | -7/Factory | Garrison activated, responded to threat 1785 | -7/Factory | Lost 6 parts (2n1u3w) 1826 | -7/Factory | Garrison activated, responded to threat 1938 | -7/Factory | Lost 10 parts (1p2n3u4w) 2646 | -7/Factory | Repaired Aluminum Leg 2689 | -7/Factory | Core integrity fell below 50% 2951 | -7/Factory | Discovered new exit (range 15) 3030 | -7/Factory | Lost 3 parts (2n1u) 3056 | -7/Factory | Entered another Factory area 3056 | -6/Factory | Evolved 2 slots: Utility x2 3086 | -6/Factory | Build established: Scavenger-Gunner 3495 | -6/Factory | Build established: Scavenger-Tank 3530 | -6/Factory | Discovered new exit (range 4) 3536 | -6/Factory | Entered Extension 3761 | -6/Extension | Disrupted transfer network 3799 | -6/Extension | Build established: Scavenger-Gunner 3828 | -6/Extension | Spotted B-75 Beast 3858 | -6/Extension | Destroyed B-75 Beast 3874 | -6/Extension | Spotted B-75 Beast 3896 | -6/Extension | Destroyed B-75 Beast 4136 | -6/Extension | Build established: Scavenger-Tank 4275 | -6/Extension | Discovered new exit (range 16) 4276 | -6/Extension | Discovered new exit (range 15) 4304 | -6/Extension | Entered Cetus 4320 | -6/Cetus | Spotted Cetus Guard 4320 | -6/Cetus | Spotted Cetus Guard 4329 | -6/Cetus | Destroyed Cetus Guard 4330 | -6/Cetus | Spotted Cetus Guard 4336 | -6/Cetus | Spotted Cetus Guard 4349 | -6/Cetus | Destroyed Cetus Guard 4384 | -6/Cetus | Destroyed Cetus Guard 4410 | -6/Cetus | Lost 10 parts (2p4n3u1w) 4416 | -6/Cetus | Destroyed Cetus Guard 4598 | -6/Cetus | Discovered new exit (range 18) 4619 | -6/Cetus | Entered Archives 4746 | -6/Archives | Discovered new exit (range 18) 4777 | -6/Archives | Discovered new exit (range 18) 4812 | -6/Archives | Discovered new exit (range 18) 4900 | -6/Archives | Unable to access archive contents 5078 | -6/Archives | Unable to access archive contents 5102 | -6/Archives | Entered Hub_04(d) 5331 | -6/Hub_04(d) | Build established: Scavenger-Gunner 5344 | -6/Hub_04(d) | Core integrity fell below 50% 5370 | -6/Hub_04(d) | Destroyed 10 combat bots 5701 | -6/Hub_04(d) | Discovered new exit (range 6) 5797 | -6/Hub_04(d) | Entered Factory 5797 | -5/Factory | Evolved 2 slots: Power x1, Utility x1 6677 | -5/Factory | Lost 4 parts (1p2u1w) 6950 | -5/Factory | System corruption reached 10% 7099 | -5/Factory | Lost 20 parts (2p8n5u5w) 7297 | -5/Factory | First assault squad dispatched 7349 | -5/Factory | Released all parts (14) 7738 | -5/Factory | Core integrity fell below 50% 7761 | -5/Factory | Self-destructed Last Messages --------------- 07692_ Acquired Core Analyzer. 07697_ Acquired Matter Filter. 07710_ Triggered Segregator Trap. 07710_ Arcs of energy rise from the floor. 07710_ Angular Momentum Engine blown off. 07710_ Matter Filter blown off. 07710_ Acquired Matter Filter. 07712_ Acquired Angular Momentum Engine. 07714_ U-05 Engineer builds a Wall. 07731_ Acquired Imp. Hacking Suite. 07733_ Lgt. Ion Engine destroyed. 07733_ Acquired 128 matter. 07734_ System corrupted: Energy discharge (-21). 07734_ Nuclear Pulse Array destroyed. 07735_ Angular Momentum Engine destroyed. 07735_ Matter Filter destroyed. 07739_ U-05 Engineer builds a Wall. 07760_ Nuclear Pulse Array destroyed. 07760_ Dropped Nuclear Pulse Array. 07761_ Imp. Transmission Jammer destroyed. Map ----- +----------------------------------------------------+ | ???????????????????# #????????????????? | | ???????????????????# #????????????????? | | ???????????????????# #????????????????? | | ???????????????????# #????????????????? | | ???????????????????+ #????????????????? | | ???????????????????# #????????????????? | | ???????????????????# #????????????????? | | ???????????????????+ #????????????????? | | ???????????????????######## #????????????????? | | ????????????????########### #????????????????? | | ????????????????# !!! #????????????????? | | ????????????????# !!! +????????????????? | | ????????????????+ """ !!! #????????????????? | | ????????????????# "Y" #????????????????? | | ????????????????# = s #????????????????? | | ????????????????# s [[ #????????????????? | | ????????????????# """ """ [% #????????????????? | | ????????????????# """ """ s [ #????????????????? | | ????????????????# """ """s #????????????????? | | ????????????????# s +????????????????? | | ????????????##### """ """ """ #????????????????? | | ??????????? """ """ """ #????????????????? | | ?????????? """ """ """ #????????????????? | | ?????????? #????????????????? | | ????????????????# #????????????????? | | ????????????????######## @ #????????????????? | | ???????????????????????# #????????????????? | | ???????????????????????# #????????????????? | | ???????????????????????# #????????????????? | | ??????????????????????#######+#########??????????? | | ?????????????????????# #??????????? | | ?????????????????????# """"""" #??????????? | | ?????????????????????# """"""" #??????????? | | ?????????????????????# = """"""" ????????????? | | ?????????????????????# """""""?????????????? | | ?????????????????????# ??????????????? | | ?????????????????????#! ????????????????? | | ?????????????????????# ?????????????????? | | ?????????????????????# ????????????????????? | | ?????????????????????########????????????????????? | | ?????????????????????????????????????????????????? | | ?????????????????????????????????????????????????? | | ?????????????????????????????????????????????????? | | ?????????????????????????????????????????????????? | | ?????????????????????????????????????????????????? | | ?????????????????????????????????????????????????? | | ?????????????????????????????????????????????????? | | ?????????????????????????????????????????????????? | | ?????????????????????????????????????????????????? | | ?????????????????????????????????????????????????? | +----------------------------------------------------+ Best States ------------- Heat Dissipation 70 Energy Generation 32 Energy Capacity 515 Matter Stores 550 Matter Capacity 550 Sight Range 18 Robot Scan Range 16 Terrain Scan Density 10 Jamming Range 14 Base Temperature (-) 150 Armor Coverage 450 Resistance: EX 50 Resistance: EM 20 Propulsion Shielding 66 Weapon Cycling 20 Evasion (%) 62 Targeting Accuracy 8 Melee Accuracy 6 Target Analysis 5 Core Analysis 6 Recoil Reduction 2 Matter Filtering 30 Kinecelleration 40 Offensive Hacking 22 Item Schematics ----------------- Lrg. Storage Unit | -5/Factory | Scanalyzed Robot Schematics ------------------ None Fabricated ------------ Nothing Repaired ---------- Aluminum Leg | 13% | -7/Factory Alien Tech Used ----------------- None Achievements -------------- root@ Challenges ------------ None Game ------ Seed TechMatterBuckler Manual? 0 Play Time 01:56:05 Cumulative 39.4 hours Start 2025.10.11 @ 18:37:10 End 2025.10.11 @ 22:21:57 Sessions 1 Manual Loads 0 Difficulty Rogue Special Mode None Game No. 39 Rogue 39 Adventurer 0 Explorer 0 Win Type - Total 0 Types 0/0/0/0/0/0/0/0/0/0 Lore% 16 Gallery% 32 Achievement% 21 Wizard Run 0 Options --------- Layout 0 ASCII 0 Keyboard 1 Movement Numpad Keybinds 0 Fullscreen 1 Font 24/Smallcaps Map View 76x50 Zoom Use 0% Tactical HUD 1 Map Filters NONE Filters NONE Steam 1 RUN: 2a6b15e0-904f-48bb-9966-5666d4bc6faf